Cogmind - Beta 11 @@@ ROGUE MODE // 2022.04.16 @ 05:09:46 Player: JackNine Result: Escaped! Performance ------------- Evolutions (9) 4500 Regions Visited (30) 6000 Robots Destroyed (544) 2720 Value Destroyed (24853) 24853 Prototype IDs (57) 1140 Alien Tech Used (8) 1600 Bonus (20104) 20104 TOTAL SCORE: 60917 Bonus ------- High Alert Combat Kills 6915 Follower Combat Kills 3444 Met Data Miner 300 Met Warlord at Base 500 MAIN.C Attacked Warlord 500 Warlord Defense Kill 1452 Built Enhanced Grunts 300 A7 Reached Mainframe 300 Met R17 at Cetus 500 Met R17 at Research 2000 Met Warlord at Research 2000 Scanned by Researcher 500 Pursued by Intercept 500 Win 3000 Friendly Fire -2107 Cogmind --------- Core Integrity 237/1600 Matter 288/300 Energy 99/100 System Corruption 3% Temperature Cool (0) Movement Core (50) Location To Epsilon Eridani Parts ------- > --- POWER (2) -------- (None) > --- PROPULSION (8) --- Biometal Heavy Treads > --- UTILITY (13) ----- Advanced Visual Processing Unit Advanced Signal Interpreter Advanced Target Analyzer System Shield Improved System Guard > --- WEAPON (2) ------- (None) > --- INVENTORY (5) ---- Subatomic Replicator Microwarp Drive Peak State ------------ > --- POWER ------------ Reinforced Quantum Reactor Reinforced Quantum Reactor > --- PROPULSION ------- Biometal Heavy Treads Experimental Biometal Heavy Treads Advanced Heavy Siege Treads > --- UTILITY ---------- Advanced Cooling System Advanced Cooling System Huge Storage Unit Experimental Optical Array Advanced Targeting Computer Advanced Target Analyzer Experimental Armor Integrity Analyzer Improved Weapon Cycler Advanced Transmission Jammer Layered Medium Armor Plating Phase Armor > --- WEAPON ----------- Hardcell Cannon Hypervelocity Mass Driver Compact Linear Accelerator > --- INVENTORY -------- Vortex Chain Reactor Biometal Heavy Treads Advanced Energy Well High-capacity Matter Pod Layered Heavy Armor Plating Centrium Medium Armor Plating Thermal Barrier Advanced EM Disruption Field Long-range Tractor Beam Subatomic Replicator Hardcell Cannon Heavy Gauss Cannon Heavy Gauss Cannon Heavy Gauss Cannon Heavy Gauss Cannon Gamma Bomb Array Tiamat Missile Launcher RU-N14's Throwing Claymores v3 RU-N14's Throwing Claymores v3 Great Maul Sigix Broadsword [Rating: 205] Favorites ----------- Power Reinforced Fission Core Engine Heavy Ion Engine Power Core Reinforced Fission Core Reactor Reinforced Quantum Reactor Propulsion Light Treads Treads Light Treads Wheel Wheel Hover Unit Cooled Antigrav System Flight Unit Field Propulsion Array Utility Advanced Targeting Computer Device Improved Weapon Cycler Storage Huge Storage Unit Processor Advanced Targeting Computer Hackware System Shield Protection Centrium Medium Armor Plating Artifact Core Physics Calibrator Weapon Gauss Cannon Energy Gun Medium Laser Energy Cannon Long-range Proton Cannon Ballistic Gun Minigun Ballistic Cannon Gauss Cannon Launcher Tiamat Missile Launcher Special Weapon RU-N14's Throwing Claymores v3 Impact Weapon Great Maul Slashing Weapon Mining Claw Build | -11 -10 -10 -9 -9 -8 -7 -7 -7 -7 -7 -7 -6 -6 -6 -6 -6 -6 -5 -5 -5 -5 -4 -4 -4 -4 -3 -2 -2 -2 -1 ------- Run | Scr Mat Min Mat Sto Mat Fac Was Fac Low Low Dat Pro Fac Ext Cet Arc Hub Fac Upp Upp War Pro Fac Was Fac Res Res Qua Sec Acc Slots Evolved 18 | . . . 2 . 2 2 . . . . . . 2 . . . . 2 . . . . 2 . . 2 2 . . 2 Power 1 | . . . . . . . . . . . . . . . . . . 1 . . . . . . . . . . . . Propulsion 6 | . . . 1 . 1 . . . . . . . 1 . . . . . . . . . . . . 1 . . . 2 Utility 11 | . . . 1 . 1 2 . . . . . . 1 . . . . 1 . . . . 1 . . 1 2 . . 1 Weapon . | . . . . . . . . . . . . . . . . . . . . . . . 1 . . . . . . -1 Parts Attached 708 | 7 10 4 19 42 33 47 13 39 3 4 2 4 39 19 23 12 22 77 4 5 17 5 28 6 21 25 32 30 96 20 Power 46 | 1 1 . 3 3 1 6 . 1 . . . . 1 3 1 . 3 6 . . . . . . 1 3 5 3 3 1 Engine 17 | 1 1 . 3 3 1 4 . 1 . . . . 1 1 . . . 1 . . . . . . . . . . . . Core 13 | . . . . . . 2 . . . . . . . 2 . . 1 5 . . . . . . 1 1 1 . . . Reactor 16 | . . . . . . . . . . . . . . . 1 . 2 . . . . . . . . 2 4 3 3 1 Propulsion 119 | 2 . . 7 12 9 11 2 5 . . . . 7 3 3 2 2 11 1 . 4 . 5 1 1 3 6 1 17 4 Treads 101 | 2 . . 5 12 9 11 2 5 . . . . 7 3 3 2 2 7 1 . 2 . 5 1 1 3 6 1 10 1 Leg . | . . . . . . . . . . . . . . . . . . . . . . . . . . . . . . . Wheel 16 | . . . 2 . . . . . . . . . . . . . . 4 . . 1 . . . . . . . 7 2 Hover 1 | . . . . . . . . . . . . . . . . . . . . . 1 . . . . . . . . . Flight 1 | . . . . . . . . . . . . . . . . . . . . . . . . . . . . . . 1 Utility 310 | 1 2 1 4 9 11 19 5 28 1 2 . 1 23 7 5 4 7 30 3 1 10 5 13 3 13 12 21 16 44 9 Device 191 | . . . 3 2 3 9 5 26 1 1 . 1 13 4 2 3 4 17 2 . 9 5 11 1 9 10 15 11 24 . Storage 12 | 1 1 . . 2 1 . . . . . . . 1 . 2 . . 1 . . . . 1 . . . 1 . 1 . Processor 21 | . . . . . 3 3 . . . . . . 1 . . . . 4 . . 1 . . . . 1 3 1 4 . Hackware 1 | . . . . . . . . . . . . . . . . . . . . . . . . . . . . . . 1 Protection 67 | . 1 1 1 5 4 7 . 2 . 1 . . 8 3 1 1 3 8 1 1 . . 1 2 4 1 2 . 8 1 Artifact 18 | . . . . . . . . . . . . . . . . . . . . . . . . . . . . 4 7 7 Weapon 233 | 3 7 3 5 18 12 11 6 5 2 2 2 3 8 6 14 6 10 30 . 4 3 . 10 2 6 7 . 10 32 6 Energy Gun 13 | 3 3 2 3 1 . . . . . . . . . . . . . 1 . . . . . . . . . . . . Energy Cannon 20 | . . . . . . 1 1 . . . . . 2 . 4 . . 9 . . . . 2 . . . . . 1 . Ballistic Gun 18 | . . . 2 8 3 . . . . . . . . . 1 2 . . . . . . . . . 2 . . . . Ballistic Cannon 115 | . 1 1 . . 5 8 3 3 1 1 2 1 5 5 5 2 9 18 . 2 2 . 6 2 6 4 . 6 15 2 Launcher 35 | . . . . 2 4 2 1 2 1 1 . 1 1 . 3 . 1 2 . 2 . . 2 . . 1 . 1 8 . Special Weapon 5 | . . . . . . . . . . . . . . . . . . . . . 1 . . . . . . . 2 2 Impact Weapon 15 | . . . . 2 . . . . . . . 1 . . 1 2 . . . . . . . . . . . 3 5 1 Slashing Weapon 12 | . 3 . . 5 . . 1 . . . . . . 1 . . . . . . . . . . . . . . 1 1 Piercing Weapon . | . . . . . . . . . . . . . . . . . . . . . . . . . . . . . . . Special Melee Weapon . | . . . . . . . . . . . . . . . . . . . . . . . . . . . . . . . Unidentified Prototypes 43 | . . . 1 3 . 3 3 . . . . 1 1 . 3 . . 3 . . 5 . . . . 3 6 3 8 . Corrupted Parts 8 | . . . . . . . . . . . . . . 1 1 2 1 2 . . . . 1 . . . . . . . System Corruption 41 | . . . . . . . . . . . . . . 1 4 15 3 14 . . . . 4 . . . . . . . Parts Lost 86 | . . . 2 1 5 . 1 1 . 1 . . 2 . . . 9 13 . . 3 . 1 2 . . 1 . 33 11 Power 8 | . . . . . 1 . . . . . . . . . . . 2 2 . . . . . . . . . . 2 1 Propulsion 28 | . . . . . 4 . 1 . . . . . . . . . 2 3 . . 1 . . . . . . . 12 5 Utility 38 | . . . 1 1 . . . 1 . 1 . . 1 . . . 1 7 . . 2 . 1 2 . . 1 . 15 4 Weapon 12 | . . . 1 . . . . . . . . . 1 . . . 4 1 . . . . . . . . . . 4 1 Highest Loss Streak 9 | . . . 2 1 2 . 1 1 . 1 . . 1 . . . 4 4 . . 2 . 1 2 . . 1 . 9 7 To Critical Strikes . | . . . . . . . . . . . . . . . . . . . . . . . . . . . . . . . Average Slot Usage (%) 89 | . 97 100 98 98 99 98 99 92 92 91 77 92 92 100 87 85 84 84 82 81 80 79 84 83 88 83 85 85 78 39 Engine 3 | . 14 14 11 10 8 5 . 1 7 7 7 7 6 1 . . . . . . . . . . . . . . . . Core 3 | . . . . . . 1 7 5 . . . . . 4 . . . 10 11 11 11 11 10 10 10 4 1 . . . Reactor 1 | . . . . . . . . . . . . . . . 5 6 5 . . . . . . . . 3 6 7 7 3 Treads 21 | . 28 28 25 33 35 29 29 23 23 23 23 23 27 33 21 20 18 10 11 11 11 17 15 15 15 14 12 13 12 . Device 15 | . . . 11 10 2 13 15 16 23 17 15 15 18 13 10 17 12 17 17 23 18 14 20 17 22 23 25 24 18 3 Storage 6 | . 14 14 11 11 9 7 7 7 7 7 7 7 6 6 8 6 6 5 5 5 5 5 5 5 5 4 4 4 4 1 Processor 10 | . . . . . 15 15 15 13 7 7 7 7 11 13 13 13 13 8 11 11 14 17 15 11 10 9 13 15 12 18 Protection 8 | . 11 14 10 10 8 6 7 6 7 12 15 15 7 13 13 8 13 11 10 4 5 5 5 6 8 7 8 5 2 . Energy Gun 1 | . 21 14 9 . . . . . . . . . . . . . . . . . . . . . . . . . . . Ballistic Gun 1 | . . . 4 20 3 . . . . . . . . . . 6 . . . . . . . . . . . . . . Ballistic Cannon 10 | . 4 13 8 . 14 14 14 14 14 14 1 14 12 13 7 3 12 7 5 4 4 5 9 14 14 13 13 11 9 . Naked Turns . | . . . . . . . . . . . . . . . . . . . . . . . . . . . . . . . Heaviest Build 202 | 11 31 31 38 59 82 77 73 82 83 81 80 80 123 137 133 130 143 153 146 143 143 140 163 173 173 167 190 202 175 116 Greatest Support 240 | 40 40 40 60 60 83 98 110 130 118 118 118 118 160 146 190 190 190 183 150 150 173 170 175 180 180 225 235 240 240 32 Greatest Overweight (x) 50 | . . . 3 . 1 . 1 . . . . . . . . . . 14 . . . . 1 1 . . . . 50 6 Average Overweight (x) . | . . . 2 . . . . . . . . . . . . . . 2 . . . . . . . . . . . . Largest Inventory Capacity 25 | 8 15 15 15 20 20 20 20 20 20 20 20 20 25 25 25 25 25 25 25 25 25 25 25 25 25 25 25 25 25 25 Average Capacity 21 | 6 13 15 15 17 20 20 20 20 20 20 20 20 21 25 25 25 25 25 25 25 25 25 25 25 25 25 25 25 25 14 Most Carried 25 | 4 13 15 15 20 20 20 20 20 20 20 20 20 25 25 25 25 25 25 25 25 25 25 25 25 25 25 25 25 25 20 Average Carried 21 | 3 9 13 14 16 19 19 19 19 20 19 20 19 21 25 24 24 23 23 24 24 24 24 24 24 24 24 24 24 22 10 Final Capacity 25 | 8 15 15 15 20 20 20 20 20 20 20 20 20 25 25 25 25 25 25 25 25 25 25 25 25 25 25 25 25 25 25 Final Carried 25 | 4 13 15 15 20 20 20 20 20 20 20 20 20 25 25 25 25 20 25 25 25 25 25 25 25 25 25 25 25 20 15 Class Distribution -------------------- 42% | Mutant 28% | Scavenger-Mutant 10% | Gunner 9% | Scavenger-Gunner 6% | Commander-Mutant Dominant Class ---------------- Mutant | -10/Materials Mutant | -10/Mines Mutant | -9/Materials Scavenger-Mutant | -9/Storage Mutant | -8/Materials Mutant | -7/Factory Mutant | -7/Waste Mutant | -7/Factory Mutant | -7/Lower Caves Mutant | -7/Lower Caves Mutant | -7/Data Miner Mutant | -6/Proximity Caves Mutant | -6/Factory Commander-Mutant | -6/Extension Commander-Mutant | -6/Cetus Scavenger-Mutant | -6/Archives Scavenger-Mutant | -6/Hub_04(d) Scavenger-Mutant | -5/Factory Scavenger-Mutant | -5/Upper Caves Scavenger-Mutant | -5/Upper Caves Scavenger-Mutant | -5/Warlord Scavenger-Mutant | -4/Proximity Caves Scavenger-Gunner | -4/Factory Gunner | -4/Waste Gunner | -4/Factory Gunner | -3/Research Scavenger-Gunner | -2/Research Mutant | -2/Quarantine Scavenger-Gunner | -2/Section 7 Scavenger-Mutant | -1/Access Resources | -11 -10 -10 -9 -9 -8 -7 -7 -7 -7 -7 -7 -6 -6 -6 -6 -6 -6 -5 -5 -5 -5 -4 -4 -4 -4 -3 -2 -2 -2 -1 ----------- Run | Scr Mat Min Mat Sto Mat Fac Was Fac Low Low Dat Pro Fac Ext Cet Arc Hub Fac Upp Upp War Pro Fac Was Fac Res Res Qua Sec Acc Matter Collected 22828 | 229 199 270 356 1017 1197 1178 783 1554 76 117 . 258 886 1029 447 423 1333 1600 203 58 446 144 747 1016 491 1204 632 1718 2825 392 Remotely 11833 | . . . . 54 493 865 727 811 . 88 . 258 625 188 . . 600 858 . . 374 58 192 816 204 388 632 1571 2031 . Salvage Created 22848 | . 296 97 661 1573 1767 984 1102 1589 54 64 . . 911 584 247 441 1687 2279 104 160 533 212 661 1096 488 494 293 1344 2802 325 Parts 939 | . 20 11 39 101 65 38 5 83 8 2 . . 29 25 6 31 79 89 1 5 20 7 38 5 11 17 8 62 123 11 Haulers Intercepted 13 | . . . . 6 2 . . . . . . . 2 . . . 1 . . . . . . . . . . 1 1 . Recyclers Shooed 14 | . . 1 . . 2 3 . 2 . . . . 1 . . . . 3 . . . . 1 . 1 . . . . . Parts Field Recycled 6 | . . . . . . 6 . . . . . . . . . . . . . . . . . . . . . . . . Retrieved Matter 38 | . . . . . . 38 . . . . . . . . . . . . . . . . . . . . . . . . Parts Self-Destructed 120 | . . . . . . . . . 7 1 . 2 . . . . . . 1 3 92 14 . . . . . . . . Prevented 13 | . . . . . . . . . . . . . . . . . . . . . 13 . . . . . . . . . Kills | -11 -10 -10 -9 -9 -8 -7 -7 -7 -7 -7 -7 -6 -6 -6 -6 -6 -6 -5 -5 -5 -5 -4 -4 -4 -4 -3 -2 -2 -2 -1 ------- Run | Scr Mat Min Mat Sto Mat Fac Was Fac Low Low Dat Pro Fac Ext Cet Arc Hub Fac Upp Upp War Pro Fac Was Fac Res Res Qua Sec Acc Combat Hostiles Destroyed 427 | . 9 7 17 25 32 18 6 40 3 3 . . 13 12 2 2 35 37 3 8 9 6 20 6 7 10 4 24 60 9 Melee 2 | . . . . . . . . . . . . . . . . . 1 1 . . . . . . . . . . . . Guns 58 | . 5 5 12 25 11 . . . . . . . . . . . . . . . . . . . . . . . . . Cannons 267 | . 4 2 5 . 12 12 6 32 1 1 . . 13 12 . 2 26 26 3 1 9 6 14 6 7 4 4 21 35 3 AOE 83 | . . . . . 9 6 . 8 2 2 . . . . . . 7 1 . 7 . . 5 . . 6 . 2 22 6 Classes Destroyed 27 | . 3 1 1 3 2 3 1 3 . . . . 1 1 . . 3 . . . 3 . . . . . . 1 1 . Worker 21 | . . . . . 2 1 . 3 . . . . . . . . 4 3 . . . . 1 . . 1 . 2 3 1 Builder 19 | . . . . . . . . 3 . . . . . 3 . . 2 3 . . . . 1 . . . . 3 4 . Tunneler 2 | . . . . . . . . . . . . . 1 . . . . 1 . . . . . . . . . . . . Hauler 13 | . . . . 6 2 . . . . . . . 2 . . . 1 . . . . . . . . . . 1 1 . Recycler 30 | . . . . 2 9 7 . 1 . . . . 2 . . . . 2 . . . . . . . 2 . 1 2 2 Mechanic 1 | . . . . . . . . 1 . . . . . . . . . . . . . . . . . . . . . . Operator 13 | . . . . 1 . . . . . . . . . . . 9 . . . . . . . . . . 2 . 1 . Watcher 18 | . 1 . 5 2 2 . . 2 . . . . 1 . . . 1 3 . . . . . . . . . 1 . . Swarmer 74 | . 3 6 5 4 3 . . . 2 1 . . . . . . 3 . . 4 . 3 9 . . 6 . 4 12 9 Saboteur 2 | . . . . . . . . . . . . . . . . . 1 1 . . . . . . . . . . . . Grunt 178 | . 6 . 8 9 27 11 . 27 . 1 . . 6 4 . . 13 19 . 3 2 2 2 . 5 1 4 7 21 . Brawler 7 | . . . . . 1 . . 1 . . . . . . . . 1 1 . 1 1 . . . 1 . . . . . Duelist 10 | . . . . . . 1 . 1 . . . . . . . . 4 3 . . . . . . . . . . 1 . Protector 3 | . . . . . . . . 1 . . . . . . . . . 1 . . . . . . . . . . 1 . Researcher 2 | . . . . . . . . . . . . . . . . . . . . . . . . . . . . . 2 . Sentry 52 | . . . 4 12 1 4 . 5 . 1 . . 4 5 . 2 3 2 . . . 1 2 . . 1 . . 5 . Specialist 9 | . . . . . . . . . . . . . . . . . 5 . . . 2 . . . . . . . 2 . Hunter 21 | . . . . . . 1 . . . . . . 1 . . . 2 6 2 . 1 . 3 . . . . 3 2 . Programmer 38 | . . . . . . 1 . 5 1 . . . 2 . . . 1 4 1 . . . 4 . . . . 9 10 . Heavy 4 | . . . . . . . . . . . . . . . . . 2 . . . . . . . . . . . 2 . Behemoth 4 | . . . . . . . . . . . . . . 2 . . . . . . . . . . 1 1 . . . . Compactor 12 | . . . . . . . 6 . . . . . . . . . . . . . . . . 6 . . . . . . Cetus Guard 2 | . . . . . . . . . . . . . . . 2 . . . . . . . . . . . . . . . S7 Guard 1 | . . . . . . . . . . . . . . . . . . . . . . . . . . . . . 1 . Tracker 2 | . . . . . . . . . . . . . . . . . . . . . . . . . . . . . 2 . Combat Programmer 1 | . . . . . . . . . . . . . . . . . . . . . . . . . . . . . 1 . Striker 3 | . . . . . . . . . . . . . . . . . . . . . 2 . . . . 1 . . . . Executioner 1 | . . . . . . . . . . . . . . . . . . . . . 1 . . . . . . . . . Alpha 7 1 | . . . . . . . . . . . . . . . . . . . . . . . . . . . . 1 . . Assembled 1 | . . 1 . . . . . . . . . . . . . . . . . . . . . . . . . . . . Surgeon 1 | . . . . . . . . . . . . . . . . . . . . . . . . . 1 . . . . . Thug 4 | . . . . . . . . . . . . . . 2 1 . . . . . . . . . 1 . . . . . Savage 1 | . . . . . . . . . . . . . . . 1 . . . . . . . . . . . . . . . Guerrilla 1 | . . . . . . . . . . . . . . 1 . . . . . . . . . . . . . . . . Mutant 1 | . . . . . . . . . . . . . . . . . . . . . 1 . . . . . . . . . Best Kill Streak 28 | . 3 3 5 5 6 6 2 6 2 2 . . 3 2 1 2 28 15 1 4 4 3 5 2 4 8 2 6 13 5 Combat Bots Only 22 | . 3 3 5 5 4 6 2 6 2 2 . . 3 2 1 2 22 7 1 4 4 3 5 2 4 8 2 5 9 5 Max Kills in Single Turn 6 | . 2 2 1 1 4 3 1 3 1 2 . . 3 1 1 1 3 2 1 4 2 1 5 1 2 6 1 2 4 4 Gunslinging 1 | . 1 1 . . 1 . . . . . . . . . . . . . . . . . . . . . . . . . Exploded 6 | . . . . . 3 3 . 2 1 2 . . . . . . 3 1 . 4 . . 5 . . 6 . 1 3 3 Melee 1 | . . . . . . . . . . . . . . . . . 1 1 . . . . . . . . . . . . Uniques/NPCs Destroyed . | . . . . . . . . . . . . . . . . . . . . . . . . . . . . . . . Combat | -11 -10 -10 -9 -9 -8 -7 -7 -7 -7 -7 -7 -6 -6 -6 -6 -6 -6 -5 -5 -5 -5 -4 -4 -4 -4 -3 -2 -2 -2 -1 -------- Run | Scr Mat Min Mat Sto Mat Fac Was Fac Low Low Dat Pro Fac Ext Cet Arc Hub Fac Upp Upp War Pro Fac Was Fac Res Res Qua Sec Acc Damage Taken 33339 | . 242 156 383 862 1467 1123 46 1358 192 212 . 172 864 1025 214 99 4013 3078 202 127 502 112 1156 251 278 467 119 2096 9590 2933 Core 4275 | . 57 36 48 78 137 168 . 75 4 13 . 33 121 80 63 24 467 287 . . 68 . 50 . 22 43 . 249 789 1363 Absorbed by Shields 2614 | . . . 147 333 125 . . 49 74 72 . . . 29 74 . . . . . . . . . 65 178 . 530 938 . Reduced by Siege Mode 802 | . . . . . . . . 8 . . . . . . . . 234 33 . . . . . . . 18 . 79 430 . Redirected to Core 174 | . . . . . . . . . . . . . . . . . . . . . . . . . . . . 126 48 . Redirected to Shielding 305 | . 28 11 27 . . . . . . . . . . 8 . . 92 54 . . . . . . . 7 . 78 . . Regen/Repaired (Parts) 1380 | . . . 65 180 174 598 . 293 . . . . . . . . . . . . . . . . . . . . 62 8 Core Remaining (%) 60 | 100 . 62 . 68 75 . . . . . . 58 . . . . 11 . . . . 64 . . 93 96 . . 28 14 Volleys Fired 1216 | . 36 14 43 87 90 64 45 85 4 8 . 4 54 55 10 44 82 101 12 7 22 13 36 32 20 22 14 67 130 15 Largest 3 | . 2 2 2 2 2 2 2 2 2 2 . 2 2 2 2 2 2 2 1 1 1 1 3 3 3 3 3 3 3 1 Hottest 230 | . 90 90 122 48 96 111 96 96 96 96 . 96 138 114 138 114 114 162 60 60 60 60 230 183 193 192 201 201 206 70 Shots Fired 2437 | . 65 28 86 174 153 126 87 163 5 15 . 7 104 109 17 73 149 196 10 7 22 13 72 97 58 62 40 188 296 15 Gun 424 | . 50 21 50 174 65 . . . . . . . . . . 64 . . . . . . . . . . . . . . Cannon 1931 | . 15 7 36 . 79 124 87 158 2 14 . 7 104 109 11 9 142 192 10 3 22 13 69 97 58 60 40 186 265 12 Launcher 62 | . . . . . 9 2 . 5 3 1 . . . . 6 . 7 4 . 4 . . 3 . . 2 . 2 14 . Special 20 | . . . . . . . . . . . . . . . . . . . . . . . . . . . . . 17 3 Kinetic 2164 | . 15 7 44 174 144 119 87 158 2 14 . 7 102 109 9 73 142 138 10 3 22 13 63 97 58 60 40 186 256 12 Thermal 122 | . 50 21 42 . . . . . . . . . . . . . . . . . . . . . . . . . 9 . Explosive 59 | . . . . . 9 2 . 5 3 1 . . . . . . . 1 . 4 . . 2 . . 2 . 2 25 3 Electromagnetic 92 | . . . . . . 5 . . . . . . 2 . 8 . 7 57 . . . . 7 . . . . . 6 . Robot Hit Streak 31 | . 7 5 18 20 31 13 23 26 10 3 . 5 22 23 5 7 11 27 11 11 12 15 13 22 11 22 7 15 16 17 Robot Miss Streak 8 | . 4 4 2 3 4 6 2 2 2 2 . . 3 3 2 3 8 4 3 1 4 3 2 2 3 3 5 7 4 . Penetration Max 1 | . . . . . . 1 1 1 . . . . 1 1 . 1 1 1 . . . . . . 1 . . 1 1 . Secondary Targets 6 | . 1 1 . 3 1 . . . . . . . . . . . . . . . . . . . . . . . . . Max Gunslinging Chain 1 | . 1 1 . 1 1 . . . . . . . . . . . . . . . . . . . . . . . . . Shots Hit Robots 1653 | . 40 16 60 136 110 81 58 109 2 8 . 4 70 63 9 48 94 149 9 7 20 12 46 80 39 42 16 124 193 8 Core Hits 961 | . 16 8 26 53 77 45 17 64 3 3 . . 32 29 11 21 85 84 7 11 21 11 38 17 22 31 8 56 153 12 Critical Kills 51 | . . . . . . . . . . . . . . 8 . 4 12 2 . . . . . . 2 . 3 10 10 . Critical Parts Destroyed 78 | . . . . 1 . . . . . . . . . 9 . 2 11 5 . . . . . . 5 8 3 15 17 2 Critical Strikes 269 | . 5 1 5 1 11 12 1 15 1 2 . . 6 28 2 6 25 22 1 . 2 2 4 2 14 10 6 29 51 5 Burn 8 | . 3 1 4 . . . . . . . . . . . . . . . . . . . . . . . . . . . Destroy 134 | . . . . 1 . . . . . . . . . 18 . 6 23 8 . . . . . . 11 9 6 23 29 . Blast 112 | . 2 . 1 . 11 12 1 15 1 2 . . 6 10 1 . 2 14 1 . 2 2 4 2 3 1 . 4 13 2 Corrupt 1 | . . . . . . . . . . . . . . . 1 . . . . . . . . . . . . . . . Smash 4 | . . . . . . . . . . . . . . . . . . . . . . . . . . . . 2 . 2 Sever 10 | . . . . . . . . . . . . . . . . . . . . . . . . . . . . . 9 1 Melee Attacks 73 | . 6 . . 13 1 . . . . . . 3 . . 9 4 . . . . . . . . . . . 19 14 4 Impact 50 | . . . . 4 1 . . . . . . 3 . . 9 4 . . . . . . . . . . . 19 7 3 Slashing 23 | . 6 . . 9 . . . . . . . . . . . . . . . . . . . . . . . . 7 1 Piercing . | . . . . . . . . . . . . . . . . . . . . . . . . . . . . . . . Sneak Attacks 7 | . . . . 1 . . . . . . . . . . . 2 . . . . . . . . . . . 1 1 2 Combat Hostiles . | . . . . . . . . . . . . . . . . . . . . . . . . . . . . . . . Follow-up Attacks . | . . . . . . . . . . . . . . . . . . . . . . . . . . . . . . . Damage Inflicted 68410 | . 531 234 1133 2414 3834 3072 1739 5431 468 384 . 64 2588 2628 798 1402 3698 5536 448 1113 1561 636 2270 2825 1414 2312 519 4196 13545 1617 Guns 5573 | . 354 179 811 2253 929 . . . . . . . . . . 1047 . . . . . . . . . . . . . . Cannons 44141 | . 177 55 322 . 1682 2308 1739 3544 80 224 . 64 2382 2539 222 132 2735 4840 448 206 1561 636 1729 2825 1413 1356 428 3705 6644 145 Explosions 15997 | . . . . 80 1223 731 . 1876 388 160 . . 177 . 576 . 871 652 . 907 . . 467 . . 902 . 207 5670 1110 Melee 1125 | . . . . 71 . . . . . . . . . . . 223 . . . . . . . . . . . 284 391 156 Ramming 613 | . . . . 10 . 33 . 11 . . . . 29 89 . . 92 44 . . . . 74 . 1 54 91 . 56 29 Kinetic 46204 | . 177 55 429 2253 2611 2201 1739 3544 80 224 . 64 2322 2539 174 1179 2735 3308 448 206 1561 636 1546 2825 1413 1356 428 3705 6301 145 Thermal 2240 | . 354 179 704 . . . . . . . . . 177 . . . 183 300 . . . . . . . . . . 343 . Explosive 13060 | . . . . 80 1223 731 . 1876 388 160 . . . . . . . . . 907 . . 385 . . 902 . 207 5091 1110 Electromagnetic 4207 | . . . . . . 107 . . . . . . 60 . 624 . 688 1884 . . . . 265 . . . . . 579 . Impact 758 | . . . . . . . . . . . . . . . . 223 . . . . . . . . . . . 284 95 156 Slashing 1328 | . . . . 71 . . . . . . . . . . . . . . . . . . . . . . . . 1080 177 Piercing . | . . . . . . . . . . . . . . . . . . . . . . . . . . . . . . . Highest Corruption 31 | . . . . . 5 3 3 3 3 3 3 3 . 1 5 11 5 19 19 19 19 2 5 12 12 . . 7 31 3 Average Corruption 6 | . . . . . 5 3 3 3 3 3 3 3 . 1 4 5 3 11 19 19 5 1 2 9 11 . . 4 15 3 Corruption Purged 22 | . . . . . . . . . . . . . . . . 18 . . . . . 2 . . 2 . . . . . Corruption Blocked . | . . . . . . . . . . . . . . . . . . . . . . . . . . . . . . . Effects 484 | . . . . . 31 35 10 40 10 9 1 12 . 1 17 19 13 44 22 19 5 4 14 25 37 . . 29 87 . Message Errors 112 | . . . . . 8 7 2 7 1 1 . 4 . 1 2 5 3 9 6 5 2 1 3 10 7 . . 10 18 . Matter Fused 116 | . . . . . 8 8 4 8 4 4 . 4 . . 6 2 3 10 5 5 1 . 6 4 10 . . 5 19 . Heat Flow Errors 53 | . . . . . 5 7 1 4 1 1 . 2 . . 2 3 1 4 . 1 . . 3 2 2 . . 1 13 . Energy Discharges 65 | . . . . . 2 7 2 5 . 2 . 1 . . 2 3 5 9 1 1 1 1 . 3 2 . . 5 13 . Parts Rejected 8 | . . . . . . . . . . . . . . . . . . 4 1 1 . . . . 1 . . . 1 . Data Loss (minor) 55 | . . . . . 3 2 . 5 3 1 . . . . 3 2 . 4 5 4 . 1 1 3 8 . . 3 7 . Data Loss (major) 13 | . . . . . 1 1 . 1 1 . . . . . . 3 . . . 1 . 1 . 2 . . . . 2 . Misfires 19 | . . . . . 1 2 1 5 . . . . . . 2 1 . 2 . . . . . 1 1 . . 1 2 . Alerts 18 | . . . . . 1 1 . 1 . . 1 1 . . . . . 1 2 . 1 . 1 . 3 . . 2 3 . Misdirections 5 | . . . . . . . . . . . . . . . . . . 1 . 1 . . . . . . . . 3 . Weapon Failures 20 | . . . . . 2 . . 4 . . . . . . . . 1 . 2 . . . . . 3 . . 2 6 . Overload Shots . | . . . . . . . . . . . . . . . . . . . . . . . . . . . . . . . Overflow Damage 2084 | . . . . . 39 53 . 238 32 26 . . 86 23 22 154 75 71 28 5 5 . 52 . 4 69 7 302 486 307 Projectiles 971 | . . . . . 39 53 . 122 . . . . 43 21 22 . 75 47 28 . 5 . 52 . 4 42 . 132 235 51 Explosions 511 | . . . . . . . . 113 32 26 . . 29 . . . . 24 . 5 . . . . . 19 . . 163 100 Melee 602 | . . . . . . . . 3 . . . . 14 2 . 154 . . . . . . . . . 8 7 170 88 156 Knockbacks 282 | . 3 1 . . 11 17 . 25 . . . . 18 8 1 2 34 40 3 . 6 6 14 . 8 8 2 21 52 2 Impact 5 | . . . . . . . . . . . . . . . . 2 . . . . . . . . . . . 1 2 . Kinetic 245 | . 3 1 . . 11 17 . 23 . . . . 16 8 1 . 27 31 3 . 6 6 12 . 6 8 2 19 43 2 Secondary 32 | . . . . . . . . 2 . . . . 2 . . . 7 9 . . . . 2 . 2 . . 1 7 . Self-Inflicted Damage 704 | . . . . 51 22 75 . 60 41 . . . . . 29 . 129 . . . . . . . . . . . 171 126 Shots 22 | . . . . 1 1 2 . 1 2 . . . . . 1 . 6 . . . . . . . . . . . 7 1 Rammed 43 | . . . . 2 1 2 . . . . . . 1 2 . . 6 3 . . . . 7 . 1 5 3 . 4 6 Targets Rammed 50 | . . . . 2 1 2 . 1 . . . . 1 5 . . 7 3 . . . . 7 . 1 5 4 . 5 6 Kicked . | . . . . . . . . . . . . . . . . . . . . . . . . . . . . . . . Crushed 7 | . . . . . . . . 1 . . . . . 3 . . 1 . . . . . . . . . 1 . 1 . Highest Temperature 514 | . 190 120 290 32 308 362 100 251 89 157 . 222 145 205 463 206 290 340 20 243 . . 514 351 380 402 370 2 274 . Average Temperature 68 | . 52 50 53 10 87 58 58 71 56 25 . 100 42 37 118 48 59 62 15 136 . . 127 94 132 125 127 2 61 . Received Heat Transfer 6020 | . 120 . 132 238 784 393 . 353 4 62 . 18 279 354 9 18 1077 692 . 36 9 12 18 . 24 36 45 84 1088 135 Effects 17 | . . . . . 3 1 . . . . . . . . 4 . . . . . . . 4 2 2 1 . . . . Shutdowns 3 | . . . . . . 1 . . . . . . . . . . . . . . . . . . 1 1 . . . . Energy Bleed 5 | . . . . . 1 . . . . . . . . . . . . . . . . . 1 2 1 . . . . . Interference 5 | . . . . . 2 . . . . . . . . . 3 . . . . . . . . . . . . . . . Matter Decay 2 | . . . . . . . . . . . . . . . 1 . . . . . . . 1 . . . . . . . Short Circuit 1 | . . . . . . . . . . . . . . . . . . . . . . . 1 . . . . . . . Damage (minor) 1 | . . . . . . . . . . . . . . . . . . . . . . . 1 . . . . . . . Siege Activations 18 | . . . . . . . . 5 . . . . . . . . 1 4 . . . . . . . 1 . 3 4 . Total Turns 306 | . . . . . . . . 37 . . . . . . . . 57 69 . . . . . . . 6 . 39 98 . Longest Duration 57 | . . . . . . . . 15 . . . . . . . . 57 28 . . . . . . . 6 . 19 57 . Robots Corrupted 18 | . . . . . . . . . . . . . . . 2 . 2 10 . . . . 1 . . . . . 3 . Combat Hostiles 16 | . . . . . . . . . . . . . . . 2 . 1 9 . . . . 1 . . . . . 3 . Parts Fried 46 | . . . . . . . . . . . . . . . 1 1 3 26 . . . . 2 . . . 1 2 5 5 Impact Corruptions 20 | . . . . . . . . 1 . . . . 1 1 . 6 . . . . . . 1 . . 1 1 3 1 4 Robots Melted . | . . . . . . . . . . . . . . . . . . . . . . . . . . . . . . . Combat Hostiles . | . . . . . . . . . . . . . . . . . . . . . . . . . . . . . . . Parts Melted 10 | . 1 2 4 . . . . . . . . . . . . . . . . . 3 . . . . . . . . . Heat Transferred 4404 | . 1188 544 1739 . . . . . . . . . 150 . . . 200 250 . . . . . . . . . . 333 . Parts Sabotaged 4 | . . . . . . . . . . . . . . . . . 2 2 . . . . . . . . . . . . Parts Stolen . | . . . . . . . . . . . . . . . . . . . . . . . . . . . . . . . Parts Stripped . | . . . . . . . . . . . . . . . . . . . . . . . . . . . . . . . Power Chain Reactions 6 | . . . . . . . . . . . . . . . . . 3 3 . . . . . . . . . . . . Missiles Intercepted . | . . . . . . . . . . . . . . . . . . . . . . . . . . . . . . . Alert | -11 -10 -10 -9 -9 -8 -7 -7 -7 -7 -7 -7 -6 -6 -6 -6 -6 -6 -5 -5 -5 -5 -4 -4 -4 -4 -3 -2 -2 -2 -1 ------- Run | Scr Mat Min Mat Sto Mat Fac Was Fac Low Low Dat Pro Fac Ext Cet Arc Hub Fac Upp Upp War Pro Fac Was Fac Res Res Qua Sec Acc Peak Influence 2171 | . 174 182 332 425 736 563 201 1356 . . . . 249 565 638 553 1623 1593 . . . . 643 209 1021 630 430 519 2171 2016 Initial 1284 | . . 27 . 139 148 267 197 2 . . . . 11 34 184 220 70 795 . . . . 48 172 . 456 289 63 279 1284 Average 470 | . 48 45 181 296 560 289 102 618 . . . . 94 182 420 411 871 1251 . . . . 445 114 724 446 242 392 859 1546 Maximum Alert Level 5 | . . . 1 2 3 2 1 4 . . . . 1 2 2 2 5 4 . . . . 2 1 3 2 2 2 5 5 Low Security (%) 28 | 100 100 100 55 17 2 9 96 24 . . . . 87 54 8 . 11 . . . . . 12 90 3 . 32 14 1 . Level 1 28 | . . . 44 76 12 76 3 12 . . . . 12 41 18 55 22 . . . . . 3 10 14 33 42 15 25 . Level 2 22 | . . . . 5 66 13 . 17 . . . . . 3 72 44 11 . . . . . 83 . 13 66 24 69 15 . Level 3 11 | . . . . . 17 . . 22 . . . . . . . . 15 36 . . . . . . 68 . . . 38 . Level 4 8 | . . . . . . . . 23 . . . . . . . . 36 63 . . . . . . . . . . 4 49 Level 5 2 | . . . . . . . . . . . . . . . . . 2 . . . . . . . . . . . 14 50 High Security . | . . . . . . . . . . . . . . . . . . . . . . . . . . . . . . . Max Security . | . . . . . . . . . . . . . . . . . . . . . . . . . . . . . . . Squads Dispatched 111 | . 1 . 1 2 6 8 . 14 . . . . 6 . . . 16 15 . . . . 4 . 3 5 1 7 20 2 Investigation 20 | . . . 1 . 2 . . 3 . . . . 1 . . . 2 5 . . . . 1 . 2 1 1 1 . . Extermination 18 | . . . . . . 2 . 3 . . . . 2 . . . . 2 . . . . 1 . . . . 3 4 1 Reinforcement 40 | . 1 . . 2 3 3 . 5 . . . . 1 . . . 8 2 . . . . 1 . . 4 . 2 8 . Assault 23 | . . . . . 1 . . 3 . . . . . . . . 4 6 . . . . 1 . 1 . . 1 5 1 Garrison 7 | . . . . . . 3 . . . . . . 2 . . . 2 . . . . . . . . . . . . . Intercept 3 | . . . . . . . . . . . . . . . . . . . . . . . . . . . . . 3 . Searches Triggered . | . . . . . . . . . . . . . . . . . . . . . . . . . . . . . . . Data Miner Redirects 15 | . . . . . . . . . . . . . . . . . . 6 . . . . 1 . 1 . . 1 5 1 Construction Impeded 7 | . . . . . 1 . . 3 . . . . . . . . 2 . . . . . . . . . . . 1 . Haulers Reinforced 7 | . . . . . . 1 . . . . . . 1 . . . 1 . . . . . . . . 2 . 1 1 . Active Scanning Responses . | . . . . . . . . . . . . . . . . . . . . . . . . . . . . . . . Cargo Convoy Interrupts . | . . . . . . . . . . . . . . . . . . . . . . . . . . . . . . . Stealth | -11 -10 -10 -9 -9 -8 -7 -7 -7 -7 -7 -7 -6 -6 -6 -6 -6 -6 -5 -5 -5 -5 -4 -4 -4 -4 -3 -2 -2 -2 -1 --------- Run | Scr Mat Min Mat Sto Mat Fac Was Fac Low Low Dat Pro Fac Ext Cet Arc Hub Fac Upp Upp War Pro Fac Was Fac Res Res Qua Sec Acc Distress Signals 44 | . 1 . 3 1 2 1 . 2 . . . 15 . 2 2 . 1 . . . . . . . 1 3 8 1 1 . Communications Jammed 226 | . . . . . . . . . . . . . . . . . . 40 . . . . 56 . 2 12 . 36 80 . Distress Signals 213 | . . . . . . . . . . . . . . . . . . 40 . . . . 56 . 2 12 . 35 68 . Times Spotted 761 | . 20 8 23 35 45 28 6 58 7 3 . 3 16 28 19 29 58 57 3 8 38 9 29 6 23 17 9 29 100 47 Peak Tracking Total 16 | . 5 3 4 4 4 6 3 5 3 3 . 1 3 6 5 1 11 9 1 4 9 5 5 4 4 7 2 4 11 16 Tactical Retreats 29 | . . 1 1 2 1 3 . 1 1 . . . . . . . 1 2 . . . . 1 . . . . 1 5 9 Traps | -11 -10 -10 -9 -9 -8 -7 -7 -7 -7 -7 -7 -6 -6 -6 -6 -6 -6 -5 -5 -5 -5 -4 -4 -4 -4 -3 -2 -2 -2 -1 ------- Run | Scr Mat Min Mat Sto Mat Fac Was Fac Low Low Dat Pro Fac Ext Cet Arc Hub Fac Upp Upp War Pro Fac Was Fac Res Res Qua Sec Acc Traps Triggered 18 | . 1 . . 1 1 2 . 2 . . . . . 1 . . . 3 . . . . 2 . 2 . . . 2 1 Indirectly 1 | . . . . . . . . . . . . . . . . . . . . . . . 1 . . . . . . . Trap Hack Attempts . | . . . . . . . . . . . . . . . . . . . . . . . . . . . . . . . Triggered . | . . . . . . . . . . . . . . . . . . . . . . . . . . . . . . . Disarmed 6 | . . . . . . 6 . . . . . . . . . . . . . . . . . . . . . . . . Reprogrammed . | . . . . . . . . . . . . . . . . . . . . . . . . . . . . . . . Reused . | . . . . . . . . . . . . . . . . . . . . . . . . . . . . . . . Traps Extracted . | . . . . . . . . . . . . . . . . . . . . . . . . . . . . . . . Installed . | . . . . . . . . . . . . . . . . . . . . . . . . . . . . . . . Triggered 10 | . . . . . . . . . . . . . . . . . . . . 1 8 1 . . . . . . . . Most Traps Carried 2 | . . 2 2 . . . . . . . . . . . . . . . . . . . . . . . . . . . Machines | -11 -10 -10 -9 -9 -8 -7 -7 -7 -7 -7 -7 -6 -6 -6 -6 -6 -6 -5 -5 -5 -5 -4 -4 -4 -4 -3 -2 -2 -2 -1 ---------- Run | Scr Mat Min Mat Sto Mat Fac Was Fac Low Low Dat Pro Fac Ext Cet Arc Hub Fac Upp Upp War Pro Fac Was Fac Res Res Qua Sec Acc Machines Disabled 89 | . . . . 3 5 9 . 15 . . . 2 5 . . 4 9 1 . . 1 . 4 . 6 1 1 9 13 1 Max in Single Turn 7 | . . . . 1 2 7 . 4 . . . 1 2 . . 1 2 1 . . . . 3 . 1 1 1 1 1 1 Garrison Access 11 | . . . . 1 1 1 . 1 . . . . . . . . 1 1 . . . . 1 . 2 1 . . 1 . Energy Cycler 1 | . . . . . . . . . . . . . . . . . . . . . . . . . . . . . . 1 Machines Sabotaged . | . . . . . . . . . . . . . . . . . . . . . . . . . . . . . . . Garrisons Compromised . | . . . . . . . . . . . . . . . . . . . . . . . . . . . . . . . Overloaded Fab Kills . | . . . . . . . . . . . . . . . . . . . . . . . . . . . . . . . Hacking | -11 -10 -10 -9 -9 -8 -7 -7 -7 -7 -7 -7 -6 -6 -6 -6 -6 -6 -5 -5 -5 -5 -4 -4 -4 -4 -3 -2 -2 -2 -1 --------- Run | Scr Mat Min Mat Sto Mat Fac Was Fac Low Low Dat Pro Fac Ext Cet Arc Hub Fac Upp Upp War Pro Fac Was Fac Res Res Qua Sec Acc Machines Accessed 113 | . 6 . 5 12 5 16 . 12 . . 4 . 8 3 2 . 5 9 . . . . 2 . 4 4 1 9 5 1 Terminals 65 | . 5 . 4 7 3 8 . 4 . . . . 5 3 2 . 4 5 . . . . . . 2 1 . 8 3 1 Fabricators 8 | . . . . . . 1 . 2 . . . . 1 . . . . 1 . . . . 1 . . 1 1 . . . Repair Stations 14 | . . . 1 2 1 3 . 3 . . . . 1 . . . . 2 . . . . . . . 1 . . . . Recycling Units 7 | . 1 . . 2 . 2 . 1 . . . . 1 . . . . . . . . . . . . . . . . . Scanalyzers 4 | . . . . . . 1 . 1 . . . . . . . . . . . . . . . . . . . 1 1 . Garrison Access 11 | . . . . 1 1 1 . 1 . . . . . . . . 1 1 . . . . 1 . 2 1 . . 1 . Total Hacks 328 | . 21 . 19 44 22 51 . 26 . . 29 . 21 8 2 . 14 23 . . . . 5 . 6 5 3 17 11 1 Successful 176 | . 10 . 11 31 11 26 . 11 . . 29 . 9 4 1 . 4 6 . . . . 3 . 2 2 2 9 4 1 Failed 152 | . 11 . 8 13 11 25 . 15 . . . . 12 4 1 . 10 17 . . . . 2 . 4 3 1 8 7 . Catastrophic 26 | . . . . . 2 2 . 3 . . . . 2 1 1 . 2 3 . . . . . . 3 1 . 3 3 . Database Lockouts . | . . . . . . . . . . . . . . . . . . . . . . . . . . . . . . . Manual 131 | . 15 . 14 15 5 21 . 13 . . . . 10 4 1 . 7 9 . . 1 . . . 4 1 . 6 5 . Terminals 170 | . 19 . 17 23 12 17 . 9 . . . . 11 8 2 . 10 12 . . . . . . 4 1 . 15 9 1 Fabricators 26 | . . . . . . 5 . 5 . . . . 7 . . . . 2 . . . . 3 . . 1 3 . . . Repair Stations 57 | . . . 2 13 8 18 . 5 . . . . 2 . . . . 7 . . . . . . . 2 . . . . Recycling Units 22 | . 2 . . 7 . 8 . 4 . . . . 1 . . . . . . . . . . . . . . . . . Scanalyzers 7 | . . . . . . 2 . 2 . . . . . . . . . . . . . . . . . . . 2 1 . Garrison Access 17 | . . . . 1 2 1 . 1 . . . . . . . . 4 2 . . . . 2 . 2 1 . . 1 . Terminal Hacks 81 | . 7 . 7 11 5 3 . 2 . . 29 . 3 3 1 . 1 1 . . . . . . . . . 5 2 1 Record 14 | . . . . . . . . . . . 11 . . . 1 . . . . . . . . . . . . 2 . . Part Schematic 9 | . . . . . . . . . . . 9 . . . . . . . . . . . . . . . . . . . Robot Schematic 7 | . . . . 1 . . . . . . 6 . . . . . . . . . . . . . . . . . . . Robot Analysis 8 | . 3 . 3 . 2 . . . . . . . . . . . . . . . . . . . . . . . . . Prototype ID Bank 8 | . 3 . 1 1 . . . . . . 3 . . . . . . . . . . . . . . . . . . . Open Door 2 | . . . . 1 . . . . . . . . 1 . . . . . . . . . . . . . . . . . Branch Access Points 3 | . . . 1 . . . . 1 . . . . . . . . . 1 . . . . . . . . . . . . Terminal Index 4 | . . . . . . 1 . . . . . . . . . . 1 . . . . . . . . . . 1 . 1 Scanalyzer Index 1 | . . . . . . . . . . . . . . . . . . . . . . . . . . . . . 1 . Alert Level 6 | . . . . 2 . 1 . . . . . . 1 1 . . . . . . . . . . . . . 1 . . Unreport Threat 9 | . . . . 2 2 . . 1 . . . . 1 1 . . . . . . . . . . . . . 1 1 . Locate Traps 5 | . 1 . 1 2 . . . . . . . . . 1 . . . . . . . . . . . . . . . . Disarm Traps 1 | . . . . . . 1 . . . . . . . . . . . . . . . . . . . . . . . . Hauler Manifests 3 | . . . 1 1 1 . . . . . . . . . . . . . . . . . . . . . . . . . Zone Layout 1 | . . . . 1 . . . . . . . . . . . . . . . . . . . . . . . . . . Fabricator Hacks 15 | . . . . . . 2 . 3 . . . . 4 . . . . 1 . . . . 2 . . 1 2 . . . Network Status 4 | . . . . . . 1 . 1 . . . . 1 . . . . 1 . . . . . . . . . . . . Load Schematic 4 | . . . . . . . . 1 . . . . 1 . . . . . . . . . 1 . . . 1 . . . Build 7 | . . . . . . 1 . 1 . . . . 2 . . . . . . . . . 1 . . 1 1 . . . Repair Station Hacks 36 | . . . 2 10 5 13 . 4 . . . . . . . . . 2 . . . . . . . . . . . . Scan Component 21 | . . . 1 6 3 7 . 2 . . . . . . . . . 2 . . . . . . . . . . . . Repair 15 | . . . 1 4 2 6 . 2 . . . . . . . . . . . . . . . . . . . . . . Recycling Unit Hacks 2 | . . . . 2 . . . . . . . . . . . . . . . . . . . . . . . . . . Report Inventory 1 | . . . . 1 . . . . . . . . . . . . . . . . . . . . . . . . . . Retrieve Components 1 | . . . . 1 . . . . . . . . . . . . . . . . . . . . . . . . . . Scanalyzer 4 | . . . . . . 2 . . . . . . . . . . . . . . . . . . . . . 1 1 . Insert Component 3 | . . . . . . 1 . . . . . . . . . . . . . . . . . . . . . 1 1 . Analyze 1 | . . . . . . 1 . . . . . . . . . . . . . . . . . . . . . . . . Garrison Access Hacks 5 | . . . . 1 . 1 . . . . . . . . . . . . . . . . 1 . . 1 . . 1 . Seal Access 5 | . . . . 1 . 1 . . . . . . . . . . . . . . . . 1 . . 1 . . 1 . Unauthorized Hacks 33 | . 3 . 2 7 1 5 . 2 . . . . 2 1 . . 3 2 . . . . . . 2 . . 3 . . Terminals 15 | . 2 . 2 3 . 2 . . . . . . 1 1 . . 2 . . . . . . . . . . 2 . . Track 1 | . . . . . . . . . . . . . . . . . 1 . . . . . . . . . . . . . Assimilate 1 | . . . . . . 1 . . . . . . . . . . . . . . . . . . . . . . . . Botnet 12 | . 2 . 2 3 . 1 . . . . . . . 1 . . 1 . . . . . . . . . . 2 . . Disrupt 1 | . . . . . . . . . . . . . 1 . . . . . . . . . . . . . . . . . Fabricators 3 | . . . . . . . . 1 . . . . 1 . . . . 1 . . . . . . . . . . . . Haulers 3 | . . . . . . . . 1 . . . . 1 . . . . 1 . . . . . . . . . . . . Repair Stations . | . . . . . . . . . . . . . . . . . . . . . . . . . . . . . . . Recycling Units 8 | . 1 . . 4 . 3 . . . . . . . . . . . . . . . . . . . . . . . . Reject 1 | . . . . 1 . . . . . . . . . . . . . . . . . . . . . . . . . . Recyclers 3 | . 1 . . 1 . 1 . . . . . . . . . . . . . . . . . . . . . . . . Mask 4 | . . . . 2 . 2 . . . . . . . . . . . . . . . . . . . . . . . . Scanalyzers 1 | . . . . . . . . . . . . . . . . . . . . . . . . . . . . 1 . . Researchers 1 | . . . . . . . . . . . . . . . . . . . . . . . . . . . . 1 . . Garrison Access 6 | . . . . . 1 . . 1 . . . . . . . . 1 1 . . . . . . 2 . . . . . Jam 6 | . . . . . 1 . . 1 . . . . . . . . 1 1 . . . . . . 2 . . . . . Data Cores Recovered . | . . . . . . . . . . . . . . . . . . . . . . . . . . . . . . . Used . | . . . . . . . . . . . . . . . . . . . . . . . . . . . . . . . Hacking Detections 93 | . 6 . 5 9 5 15 . 10 . . . . 7 3 1 . 5 8 . . . . 1 . 2 3 1 8 3 1 Full Trace Events 11 | . . . 1 . . . . 2 . . . . 1 . . . 1 3 . . . . 1 . . . 1 1 . . Feedback Events . | . . . . . . . . . . . . . . . . . . . . . . . . . . . . . . . Feedback Blocked 1 | . . . . . . . . . . . . . . . . . 1 . . . . . . . . . . . . . Robot Schematics Acquired 7 | . . . . 1 . . . . . . 6 . . . . . . . . . . . . . . . . . . . Robots Built . | . . . . . . . . . . . . . . . . . . . . . . . . . . . . . . . Authchips . | . . . . . . . . . . . . . . . . . . . . . . . . . . . . . . . Time . | . . . . . . . . . . . . . . . . . . . . . . . . . . . . . . . Total Robot Build Rating . | . . . . . . . . . . . . . . . . . . . . . . . . . . . . . . . Part Schematics Acquired 13 | . . . . . . 1 . . . . 9 . . . . . . . . . . . . . . . . . 3 . Parts Built 12 | . . . . . . 2 . 1 . . . . 4 . . . . . . . . . 2 . . 2 1 . . . Authchips . | . . . . . . . . . . . . . . . . . . . . . . . . . . . . . . . Time 723 | . . . . . . 117 . 73 . . . . 212 . . . . . . . . . 106 . . 46 169 . . . Total Part Build Rating 77 | . . . . . . 14 . 3 . . . . 24 . . . . . . . . . 12 . . 18 6 . . . Parts Repaired 15 | . . . 1 4 2 6 . 2 . . . . . . . . . . . . . . . . . . . . . . Time 659 | . . . 26 173 52 263 . 145 . . . . . . . . . . . . . . . . . . . . . . Parts Recycled . | . . . . . . . . . . . . . . . . . . . . . . . . . . . . . . . Recycled Matter . | . . . . . . . . . . . . . . . . . . . . . . . . . . . . . . . Retrieved Matter . | . . . . . . . . . . . . . . . . . . . . . . . . . . . . . . . Retrieved Components 7 | . . . . 7 . . . . . . . . . . . . . . . . . . . . . . . . . . Parts Scanalyzed 1 | . . . . . . 1 . . . . . . . . . . . . . . . . . . . . . . . . Part Schematics Acquired 1 | . . . . . . 1 . . . . . . . . . . . . . . . . . . . . . . . . Parts Damaged . | . . . . . . . . . . . . . . . . . . . . . . . . . . . . . . . Bothacking | -11 -10 -10 -9 -9 -8 -7 -7 -7 -7 -7 -7 -6 -6 -6 -6 -6 -6 -5 -5 -5 -5 -4 -4 -4 -4 -3 -2 -2 -2 -1 ------------ Run | Scr Mat Min Mat Sto Mat Fac Was Fac Low Low Dat Pro Fac Ext Cet Arc Hub Fac Upp Upp War Pro Fac Was Fac Res Res Qua Sec Acc Used RIF Installer . | . . . . . . . . . . . . . . . . . . . . . . . . . . . . . . . Robots Hacked . | . . . . . . . . . . . . . . . . . . . . . . . . . . . . . . . Non-combat . | . . . . . . . . . . . . . . . . . . . . . . . . . . . . . . . Combat . | . . . . . . . . . . . . . . . . . . . . . . . . . . . . . . . Robot Hacks Applied . | . . . . . . . . . . . . . . . . . . . . . . . . . . . . . . . Relay Couplers Released 5 | . . . . . . . . . . . . . . . . . 1 . . . . . . . . 4 . . . . Machine Destruction 1 | . . . . . . . . . . . . . . . . . 1 . . . . . . . . . . . . . Programmers 4 | . . . . . . . . . . . . . . . . . . . . . . . . . . 4 . . . . Fabnet Peak Effective % . | . . . . . . . . . . . . . . . . . . . . . . . . . . . . . . . Robots Rewired 27 | . . . . . . . . . . . . 2 . 22 . . . . . . 3 . . . . . . . . . Allies Hacked . | . . . . . . . . . . . . . . . . . . . . . . . . . . . . . . . Hacks Repelled . | . . . . . . . . . . . . . . . . . . . . . . . . . . . . . . . Allies | -11 -10 -10 -9 -9 -8 -7 -7 -7 -7 -7 -7 -6 -6 -6 -6 -6 -6 -5 -5 -5 -5 -4 -4 -4 -4 -3 -2 -2 -2 -1 -------- Run | Scr Mat Min Mat Sto Mat Fac Was Fac Low Low Dat Pro Fac Ext Cet Arc Hub Fac Upp Upp War Pro Fac Was Fac Res Res Qua Sec Acc Total Allies 60 | . . . . . . 1 . 3 . . . 3 . 27 5 . . . . . 3 . . 18 . . . . . . Largest Group 18 | . . . . . . 1 . 3 . . . 3 . 13 12 7 6 . . . 3 2 1 18 18 1 . . . . Highest-Rated Group 740 | . . . . . . 26 . 93 . . . 164 . 507 740 671 512 . . . 166 97 43 638 638 25 . . . . Highest-Rated Ally 159 | . . . . . . 26 . 31 . . . 96 . 159 159 159 96 . . . 68 54 43 50 50 25 . . . . Total Orders 20 | . . . . . . . 11 3 . . . . . . . . 1 . . . 2 . 2 1 . . . . . . STAY 2 | . . . . . . . . . . . . . . . . . 1 . . . 1 . . . . . . . . . ROAM 2 | . . . . . . . 2 . . . . . . . . . . . . . . . . . . . . . . . FOLLOW 1 | . . . . . . . . . . . . . . . . . . . . . 1 . . . . . . . . . EXPLORE 13 | . . . . . . . 7 3 . . . . . . . . . . . . . . 2 1 . . . . . . RETURN 2 | . . . . . . . 2 . . . . . . . . . . . . . . . . . . . . . . . Ally Attacks 538 | . . . . . . . . 50 . . . 42 . 124 92 13 55 . . . 21 11 4 . 126 . . . . . Total Damage 14341 | . . . . . . . . 978 . . . 1054 . 2507 2236 331 2664 . . . 1171 139 91 . 3170 . . . . . Kills 98 | . . . . . . . . 9 . . . 5 . 24 19 2 14 . . . 7 1 2 . 15 . . . . . Allies Corrupted 1 | . . . . . . . . . . . . . . . . . . . . . . . 1 . . . . . . . Allies Melted 5 | . . . . . . . . . . . . . . . . . 1 . . . . . . . 1 . 3 . . . Intel | -11 -10 -10 -9 -9 -8 -7 -7 -7 -7 -7 -7 -6 -6 -6 -6 -6 -6 -5 -5 -5 -5 -4 -4 -4 -4 -3 -2 -2 -2 -1 ------- Run | Scr Mat Min Mat Sto Mat Fac Was Fac Low Low Dat Pro Fac Ext Cet Arc Hub Fac Upp Upp War Pro Fac Was Fac Res Res Qua Sec Acc Robot Analysis Total 8 | . 3 . 3 . 2 . . . . . . . . . . . . . . . . . . . . . . . . . Derelict Logs Recovered 4 | . . 2 . . . . . . . 1 . . . . . . . . . . . 1 . . . . . . . . Drone Launches 16 | . . . . . . . 10 3 . . . . . . . . . . . . . . 2 1 . . . . . . Drone Recoveries 8 | . . . . . . . 6 1 . . . . . . . . . . . . . . 1 . . . . . . . Exploration | -11 -10 -10 -9 -9 -8 -7 -7 -7 -7 -7 -7 -6 -6 -6 -6 -6 -6 -5 -5 -5 -5 -4 -4 -4 -4 -3 -2 -2 -2 -1 ------------- Run | Scr Mat Min Mat Sto Mat Fac Was Fac Low Low Dat Pro Fac Ext Cet Arc Hub Fac Upp Upp War Pro Fac Was Fac Res Res Qua Sec Acc Turns Passed 31719 | 67 906 948 708 1821 1712 2729 734 2121 418 490 147 567 1354 1703 511 816 771 1906 481 388 1019 612 911 650 915 1064 1191 1428 2185 446 Spaces Moved 16031 | 38 445 538 352 761 715 1493 293 1067 252 288 90 323 713 773 242 325 318 811 277 227 499 352 365 301 507 577 714 770 996 609 Core 262 | 6 . . . . . . . . . . . . . . . . . . . . . . . . . . . . . 256 Treads 14625 | 32 445 538 97 761 715 1493 293 1067 252 288 90 323 713 773 242 325 318 528 277 227 499 352 365 301 507 577 714 770 743 . Legs . | . . . . . . . . . . . . . . . . . . . . . . . . . . . . . . . Wheels 880 | . . . 255 . . . . . . . . . . . . . . 283 . . . . . . . . . . 208 134 Hover . | . . . . . . . . . . . . . . . . . . . . . . . . . . . . . . . Flight 44 | . . . . . . . . . . . . . . . . . . . . . . . . . . . . . . 44 Fastest Speed 40 | 50 160 160 120 160 160 156 148 148 160 160 160 160 156 157 155 155 155 160 160 160 160 163 155 155 155 155 141 141 106 40 Average Speed 156 | 142 160 160 134 160 181 157 153 154 160 160 160 160 156 157 158 155 156 174 160 160 160 163 167 159 157 162 147 144 163 78 Slowest Speed 350 | 160 160 160 160 160 240 160 232 160 160 160 160 160 157 157 160 155 160 290 160 160 163 163 232 232 161 166 155 146 270 350 Overloaded Moves . | . . . . . . . . . . . . . . . . . . . . . . . . . . . . . . . Propulsion Burnouts . | . . . . . . . . . . . . . . . . . . . . . . . . . . . . . . . Robots Hopped . | . . . . . . . . . . . . . . . . . . . . . . . . . . . . . . . Cave-ins Triggered 1 | . . . . . . . . . . . . . . . . . . . . . . . . 1 . . . . . . Microwarps 27 | . . . . . . . . . . . . . . . . . . . . . . . . . . . . . 8 19 Exploration Rate (%) 52 | 4 84 93 39 90 55 42 86 40 47 51 68 43 19 85 85 99 49 25 44 49 56 59 13 97 17 23 31 82 45 19 Regions Visited 30 Branch Regions 16 Pre-discovered Areas 3 | . . . . 1 . . . . . . 1 . . . . . . . . . . 1 . . . . . . . . Known Exits Taken 6 | . . 1 1 . . . . 1 . . . . . . . . . 1 . . . . . . . 1 . . 1 . Unknown Exits Taken 20 | 1 1 . . 1 1 . . . 1 1 1 1 1 1 1 1 1 . 1 1 1 1 . . 1 . 1 1 . . Scrap Searched 9 | . . 1 . . . . . . . 1 . . . . . . . . 2 1 . 4 . . . . . . . . Spaces Dug 209 | . 4 . . 7 36 34 10 2 4 . . 3 11 9 1 . 18 23 . . . . 3 . . . 2 4 37 1 Terrain Destroyed 1412 | . 4 . . 18 134 87 24 179 34 12 . 5 73 29 3 13 61 55 6 60 3 5 64 24 8 31 16 50 321 93 Melee 21 | . 4 . . 7 . . . . . . . 1 . . 1 . . . . . . . . . . . . 3 4 1 Projectile 482 | . . . . . 30 26 24 54 . 7 . 4 36 29 2 13 43 22 6 1 3 5 27 24 8 10 16 26 66 . AOE 909 | . . . . 11 104 61 . 125 34 5 . . 37 . . . 18 33 . 59 . . 37 . . 21 . 21 251 92 Terrain Rammed . | . . . . . . . . . . . . . . . . . . . . . . . . . . . . . . . Walls Destroyed . | . . . . . . . . . . . . . . . . . . . . . . . . . . . . . . . Machines Disabled . | . . . . . . . . . . . . . . . . . . . . . . . . . . . . . . . Actions | -11 -10 -10 -9 -9 -8 -7 -7 -7 -7 -7 -7 -6 -6 -6 -6 -6 -6 -5 -5 -5 -5 -4 -4 -4 -4 -3 -2 -2 -2 -1 --------- Run | Scr Mat Min Mat Sto Mat Fac Was Fac Low Low Dat Pro Fac Ext Cet Arc Hub Fac Upp Upp War Pro Fac Was Fac Res Res Qua Sec Acc Total 20619 | 47 561 597 517 1189 981 1755 491 1371 260 302 93 362 885 1185 343 579 466 1137 303 245 697 379 594 402 593 664 846 938 1319 518 Wait 1762 | . 47 37 66 236 95 96 129 148 2 . . 14 28 84 34 186 24 62 6 3 124 2 125 52 21 12 25 38 64 2 Move 15810 | 37 444 537 351 760 714 1493 292 1066 251 287 89 322 712 772 241 324 318 810 276 226 498 351 365 300 506 576 713 769 958 452 Hop . | . . . . . . . . . . . . . . . . . . . . . . . . . . . . . . . Pick Up 220 | 3 10 3 15 14 19 17 2 9 . 1 . 2 18 4 8 2 8 26 1 . 3 2 11 6 3 3 14 3 11 2 Fast Attach 291 | 6 4 . 7 11 10 17 7 10 . 1 2 1 11 10 6 8 5 31 4 3 12 4 7 2 14 15 25 9 41 8 Attach 113 | . . . 2 . 8 6 2 5 . 1 . 1 9 . . 2 8 19 . 2 . 1 5 1 . 4 2 2 21 12 Detach 92 | . 3 . . 2 6 7 1 4 . 1 . 1 8 . . . 1 15 . 2 1 1 2 . 1 5 5 . 16 10 Swap 308 | 1 6 4 10 31 15 24 4 24 3 2 . 2 19 9 17 2 9 27 . . 5 . 16 3 7 6 6 19 36 1 Drop 412 | . 5 2 23 33 22 29 8 19 . 1 2 3 25 17 18 7 5 27 4 2 14 5 20 6 20 16 38 12 23 6 Fire 1216 | . 36 14 43 87 90 64 45 85 4 8 . 4 54 55 10 44 82 101 12 7 22 13 36 32 20 22 14 67 130 15 Melee 73 | . 6 . . 13 1 . . . . . . 3 . . 9 4 . . . . . . . . . . . 19 14 4 Ram 6 | . . . . . . . . . . . . . . . . . . . . . . . . . . . . . . 6 Kick . | . . . . . . . . . . . . . . . . . . . . . . . . . . . . . . . Crush 43 | . . . . 2 1 2 . 1 . . . . 1 5 . . 6 3 . . . . 7 . 1 5 4 . 5 . Escape Stasis 17 | . . . . . . . . . . . . . . 1 . . . 16 . . . . . . . . . . . . Rewire 255 | . . . . . . . . . . . . 9 . 228 . . . . . . 18 . . . . . . . . . Trap . | . . . . . . . . . . . . . . . . . . . . . . . . . . . . . . . Miscellaneous 1 | . . . . . . . 1 . . . . . . . . . . . . . . . . . . . . . . . Route ------- -11/Scrapyard -10/Materials (discovered 3 exits: *Mat x2 / [*Min]) -10/Mines (discovered 2 exits: *Mat x2) -9/Materials (discovered 3 exits: Min / *Sto x2) -9/Storage -8/Materials -7/Factory (discovered 2 exits: *Fac / *Low) -7/Waste -7/Factory (discovered 3 exits: *Fac / *Low x2) -7/Lower Caves -7/Lower Caves -7/Data Miner -6/Proximity Caves -6/Factory -6/Extension (discovered 2 exits: *Fac / *Cet) -6/Cetus (discovered 2 exits: *Fac / [*Arc]) -6/Archives (discovered 3 exits: *Fac / *Hub x2) -6/Hub_04(d) (discovered 3 exits: *Fac x3) -5/Factory (discovered 2 exits: *Upp x2) -5/Upper Caves -5/Upper Caves (discovered 2 exits: *Fac / *War) -5/Warlord -4/Proximity Caves -4/Factory -4/Waste -4/Factory -3/Research -2/Research -2/Quarantine (discovered 2 exits: *Acc / *Sec) -2/Section 7 -1/Access To Epsilon Eridani History --------- Turn | Location | Event 40 | -11/Scrapyard | Discovered new exit (range 14) 68 | -11/Scrapyard | Entered Materials 305 | -10/Materials | Build established: Mutant 447 | -10/Materials | Discovered new exit (range 13) 621 | -10/Materials | Discovered new exit (range 15) 919 | -10/Materials | Discovered new exit (range 16) 974 | -10/Materials | Entered Mines 1011 | -10/Mines | Discovered new exit (range 8) 1052 | -10/Mines | Met a Derelict bent on vengeance 1133 | -10/Mines | Learned Materials emergency access door positions 1237 | -10/Mines | Assembled infested the area 1676 | -10/Mines | Found a hidden stash of uninstalled traps 1806 | -10/Mines | Identified exit to Materials 1922 | -10/Mines | Entered Materials 1922 | -9/Materials | Evolved 2 slots: Propulsion x1, Utility x1 2140 | -9/Materials | Repaired Lgt. Treads 2359 | -9/Materials | Discovered new exit (range 16) 2515 | -9/Materials | Identified exit to Mines 2515 | -9/Materials | Identified exit to Storage 2630 | -9/Materials | Entered Storage 2813 | -9/Storage | Found Prototype Launcher 2813 | -9/Storage | Identified Scatter Rocket Array 2906 | -9/Storage | Build established: Scavenger-Mutant 3202 | -9/Storage | Learned location of Armory (-3) 3279 | -9/Storage | Repaired Shield Generator 3345 | -9/Storage | Repaired Broken Imp. Assault Rifle 3720 | -9/Storage | Discovered new exit (range 7) 4309 | -9/Storage | Repaired Hvy. Ion Engine 4337 | -9/Storage | Repaired Lgt. Armor Plating 4451 | -9/Storage | Entered Materials 4451 | -8/Materials | Evolved 2 slots: Propulsion x1, Utility x1 5251 | -8/Materials | First assault squad dispatched 5492 | -8/Materials | Build established: Mutant 5871 | -8/Materials | Repaired Lgt. Treads 5899 | -8/Materials | Repaired Lgt. Treads 6088 | -8/Materials | Discovered new exit (range 7) 6163 | -8/Materials | Entered Factory 6163 | -7/Factory | Evolved 2 slots: Utility x2 6564 | -7/Factory | Build established: Scavenger-Mutant 6766 | -7/Factory | Fabricated Adv. Medium Treads (x2) 7019 | -7/Factory | Repaired Broken Gauss Cannon 7062 | -7/Factory | Repaired Hvy. Armor Plating? 7079 | -7/Factory | Build established: Mutant 7156 | -7/Factory | Repaired Hrd. Medium Armor Plating 7202 | -7/Factory | Repaired Gauss Cannon 7772 | -7/Factory | Discovered new exit (range 10) 7920 | -7/Factory | Discovered new exit (range 8) 8018 | -7/Factory | Identified exit to Lower Caves 8316 | -7/Factory | Garrison activated, responded to threat 8479 | -7/Factory | Repaired Hrd. Medium Armor Plating? 8550 | -7/Factory | Repaired Gauss Cannon 8892 | -7/Factory | Sucked down chute 8892 | -7/Factory | Entered Waste 8960 | -7/Waste | Spotted C-40 Crusher 9015 | -7/Waste | Spotted C-40 Crusher 9016 | -7/Waste | Spotted C-40 Crusher 9069 | -7/Waste | Destroyed C-40 Crusher 9108 | -7/Waste | Destroyed C-40 Crusher 9111 | -7/Waste | Destroyed C-40 Crusher 9152 | -7/Waste | Discovered new exit (range 47) 9153 | -7/Waste | Spotted C-40 Crusher 9199 | -7/Waste | Spotted C-40 Crusher 9218 | -7/Waste | Destroyed C-40 Crusher 9223 | -7/Waste | Spotted C-40 Crusher 9287 | -7/Waste | Destroyed C-40 Crusher 9322 | -7/Waste | Crushed by Compactor (1 part destroyed, 1 dropped) 9469 | -7/Waste | Destroyed C-40 Crusher 9626 | -7/Waste | Entered Factory 9969 | -7/Factory | Repaired Tiamat Missile Launcher 10316 | -7/Factory | Repaired Hvy. Treads? 10833 | -7/Factory | Fabricated Hrd. Medium Armor Plating (x1) 11070 | -7/Factory | Allied Derelicts emerged from ambush trap array 11226 | -7/Factory | First assault squad dispatched 11288 | -7/Factory | Discovered new exit (range 14) 11747 | -7/Factory | Entered Lower Caves 12119 | -7/Lower Caves | Discovered new exit (range 14) 12139 | -7/Lower Caves | Attracted the attention of an 0b10 checkpoint 12165 | -7/Lower Caves | Entered another Lower Caves area 12298 | -7/Lower Caves | Attracted the attention of an 0b10 checkpoint 12521 | -7/Lower Caves | Discovered new exit (range 13) 12628 | -7/Lower Caves | Learned Factory stockpile data 12655 | -7/Lower Caves | Entered Data Miner 12656 | -7/Data Miner | Discovered new exit (range 6) 12687 | -7/Data Miner | Met Data Miner 12714 | -7/Data Miner | Learned location of Section 7 (-2) 12714 | -7/Data Miner | Acquired the access code to Warlord's prototype stash 12741 | -7/Data Miner | Received God Mode back door access code from Data Miner 12802 | -7/Data Miner | Entered Proximity Caves 13077 | -6/Proximity Caves | Found Prototype Launcher 13077 | -6/Proximity Caves | Identified Tesla Bomb Launcher 13221 | -6/Proximity Caves | Discovered new exit (range 15) 13233 | -6/Proximity Caves | Escorted by Enhanced Grunt 13369 | -6/Proximity Caves | Entered Factory 13369 | -6/Factory | Evolved 2 slots: Propulsion x1, Utility x1 13524 | -6/Factory | Fabricated Imp. Weapon Cycler? 13667 | -6/Factory | Fabricated Enh. Gauss Cannon? 14385 | -6/Factory | Discovered new exit (range 6) 14594 | -6/Factory | Garrison activated, responded to threat 14723 | -6/Factory | Entered Extension 14765 | -6/Extension | Rescued a captive Derelict 14934 | -6/Extension | Rescued a captive Derelict 15533 | -6/Extension | Build established: Commander-Mutant 15729 | -6/Extension | Spotted B-75 Beast 15748 | -6/Extension | Destroyed B-75 Beast 15761 | -6/Extension | Spotted B-75 Beast 15774 | -6/Extension | Destroyed B-75 Beast 15880 | -6/Extension | Rescued a captive Derelict 15882 | -6/Extension | Rescued a captive Derelict 16253 | -6/Extension | Rescued A7 16409 | -6/Extension | Discovered new exit (range 10) 16410 | -6/Extension | Discovered new exit (range 6) 16426 | -6/Extension | Entered Cetus 16426 | -6/Cetus | Accompanied by 12 allies (A7) 16431 | -6/Cetus | Acquired a Cetus Manufacturing Module code from A7 16450 | -6/Cetus | Spotted Cetus Guard 16450 | -6/Cetus | Spotted Cetus Guard 16450 | -6/Cetus | Spotted Cetus Guard 16450 | -6/Cetus | Spotted Cetus Guard 16464 | -6/Cetus | Allies destroyed Cetus Guard 16465 | -6/Cetus | Allies destroyed Cetus Guard 16468 | -6/Cetus | Allies destroyed Cetus Guard 16470 | -6/Cetus | Destroyed Cetus Guard 16623 | -6/Cetus | Started Cetus Manufacturing Module 16648 | -6/Cetus | Manufactured an Enhanced Grunt 16671 | -6/Cetus | Escorted A7 to Cetus Mainframe 16673 | -6/Cetus | Manufactured an Enhanced Grunt 16698 | -6/Cetus | Manufactured an Enhanced Grunt 16723 | -6/Cetus | Manufactured an Enhanced Grunt 16748 | -6/Cetus | Manufactured an Enhanced Grunt 16762 | -6/Cetus | Discovered new exit (range 22) 16813 | -6/Cetus | Spotted Cetus Guard 16813 | -6/Cetus | Spotted Cetus Guard 16813 | -6/Cetus | Spotted Cetus Guard 16816 | -6/Cetus | Discovered new exit (range 22) 16823 | -6/Cetus | Allies destroyed Cetus Guard 16823 | -6/Cetus | Spotted Cetus Guard 16830 | -6/Cetus | Allies destroyed Cetus Guard 16833 | -6/Cetus | Allies destroyed Cetus Guard 16840 | -6/Cetus | Destroyed Cetus Guard 16847 | -6/Cetus | Met Revision 17 16937 | -6/Cetus | Entered Archives 16937 | -6/Archives | Accompanied by 7 allies (A7) 16942 | -6/Archives | Received a hacking code to weaken MAIN.C 16978 | -6/Archives | Discovered new exit (range 22) 16986 | -6/Archives | Discovered new exit (range 19) 17163 | -6/Archives | Discovered new exit (range 17) 17351 | -6/Archives | System corruption reached 10% 17371 | -6/Archives | Build established: Scavenger-Mutant 17753 | -6/Archives | Entered Hub_04(d) 17753 | -6/Hub_04(d) | Accompanied by 6 allies 17841 | -6/Hub_04(d) | Discovered new exit (range 15) 18014 | -6/Hub_04(d) | Discovered new exit (range 5) 18024 | -6/Hub_04(d) | Build established: Commander-Mutant 18103 | -6/Hub_04(d) | First assault squad dispatched 18104 | -6/Hub_04(d) | Garrison activated, responded to threat 18109 | -6/Hub_04(d) | Discovered new exit (range 7) 18134 | -6/Hub_04(d) | Core integrity fell below 50% 18183 | -6/Hub_04(d) | Lost 3 parts (1p2w) 18236 | -6/Hub_04(d) | Destroyed 22 combat bots 18353 | -6/Hub_04(d) | Build established: Scavenger-Mutant 18489 | -6/Hub_04(d) | Core integrity fell below 20% 18523 | -6/Hub_04(d) | Lost 4 parts (1p1n1u1w) 18524 | -6/Hub_04(d) | Entered Factory 18524 | -5/Factory | Evolved 2 slots: Power x1, Utility x1 18649 | -5/Factory | Incoming investigation squad redirected 18824 | -5/Factory | First assault squad dispatched 18848 | -5/Factory | Incoming assault squad redirected 18868 | -5/Factory | Incoming investigation squad redirected 19213 | -5/Factory | Build established: Mutant 19272 | -5/Factory | Destroyed 7 combat bots 19325 | -5/Factory | Lost 4 parts (2p2u) 19564 | -5/Factory | System corruption reached 10% 19584 | -5/Factory | Build established: Scavenger-Mutant 19678 | -5/Factory | Incoming investigation squad redirected 19742 | -5/Factory | Incoming investigation squad redirected 20033 | -5/Factory | Lost 3 parts (2n1u) 20322 | -5/Factory | Identified exit to Upper Caves 20341 | -5/Factory | Incoming assault squad redirected 20430 | -5/Factory | Entered Upper Caves 20861 | -5/Upper Caves | Discovered new exit (range 8) 20911 | -5/Upper Caves | Entered another Upper Caves area 20985 | -5/Upper Caves | Discovered new exit (range 6) 21256 | -5/Upper Caves | Encountered a Warlord checkpoint 21275 | -5/Upper Caves | Discovered new exit (range 16) 21299 | -5/Upper Caves | Entered Warlord 21354 | -5/Warlord | System corruption cleaned by Quarantine Array 21556 | -5/Warlord | Found Prototype Special Weapon 21556 | -5/Warlord | Identified RU-N14's Throwing Claymores v3 21560 | -5/Warlord | Found RU-N14's Throwing Claymores v3 21710 | -5/Warlord | Met Warlord 21731 | -5/Warlord | Opened Warlord's prototype stash 21735 | -5/Warlord | Warlord's base attacked by MAIN.C 21736 | -5/Warlord | Found Prototype Device 21736 | -5/Warlord | Identified Thermal Barrier 21739 | -5/Warlord | Found Prototype Processor 21739 | -5/Warlord | Identified Exp. Armor Integrity Analyzer 21760 | -5/Warlord | Found Prototype Device 21760 | -5/Warlord | Identified Exp. Cloaking Device 21779 | -5/Warlord | Found Prototype Reactor 22085 | -5/Warlord | Warlord forces counterattacked 22126 | -5/Warlord | Spotted Executioner 22138 | -5/Warlord | Destroyed Executioner 22245 | -5/Warlord | Spotted Striker 22248 | -5/Warlord | Spotted Striker 22263 | -5/Warlord | Destroyed Striker 22263 | -5/Warlord | Destroyed Striker 22284 | -5/Warlord | Discovered new exit (range 16) 22285 | -5/Warlord | Build established: Mutant 22318 | -5/Warlord | Entered Proximity Caves 22318 | -4/Proximity Caves | Accompanied by 2 allies 22597 | -4/Proximity Caves | Build established: Scavenger-Mutant 22638 | -4/Proximity Caves | Learned location of Quarantine (-2) 22677 | -4/Proximity Caves | Attracted the attention of an 0b10 checkpoint 22853 | -4/Proximity Caves | Discovered new exit (range 10) 22930 | -4/Proximity Caves | Entered Factory 22930 | -4/Factory | Accompanied by 1 ally 22930 | -4/Factory | Evolved 2 slots: Utility x1, Weapon x1 23514 | -4/Factory | Build established: Scavenger-Gunner 23680 | -4/Factory | First assault squad dispatched 23698 | -4/Factory | Incoming assault squad redirected 23803 | -4/Factory | Fabricated Enh. Gauss Cannon (x2) 23825 | -4/Factory | Build established: Infiltrator-Gunner 23841 | -4/Factory | Sucked down chute 23841 | -4/Factory | Entered Waste 23860 | -4/Waste | Spotted C-40 Crusher 23885 | -4/Waste | Spotted C-40 Crusher 23888 | -4/Waste | Destroyed C-40 Crusher 23894 | -4/Waste | Spotted C-40 Crusher 23894 | -4/Waste | Spotted C-40 Crusher 23934 | -4/Waste | Spotted C-40 Crusher 23981 | -4/Waste | Spotted C-40 Crusher 24023 | -4/Waste | Destroyed C-40 Crusher 24026 | -4/Waste | Destroyed C-40 Crusher 24049 | -4/Waste | Destroyed C-40 Crusher 24087 | -4/Waste | Destroyed C-40 Crusher 24088 | -4/Waste | Crushed by falling debris 24088 | -4/Waste | System corruption reached 10% 24112 | -4/Waste | Destroyed C-40 Crusher 24261 | -4/Waste | Discovered new exit (range 15) 24275 | -4/Waste | Warlord forces began an assault 24385 | -4/Waste | Build established: Gunner 24491 | -4/Waste | Entered Factory 24491 | -4/Factory | Accompanied by 18 allies 24939 | -4/Factory | Incoming investigation squad redirected 24991 | -4/Factory | First assault squad dispatched 25067 | -4/Factory | Spotted B-86 Titan 25091 | -4/Factory | Destroyed B-86 Titan 25377 | -4/Factory | Discovered new exit (range 3) 25406 | -4/Factory | Entered Research 25406 | -3/Research | Accompanied by 1 ally 25406 | -3/Research | Evolved 2 slots: Propulsion x1, Utility x1 25542 | -3/Research | Spotted B-86 Titan 25551 | -3/Research | Destroyed B-86 Titan 25574 | -3/Research | Found Unknown Device 25574 | -3/Research | Identified Antimissile System 25606 | -3/Research | Revision forces began assault on 0b10 25646 | -3/Research | Met up with Revision 17++ 26106 | -3/Research | Research terminal network offline 26173 | -3/Research | Spotted Striker 26173 | -3/Research | Spotted Striker 26173 | -3/Research | Spotted Executioner 26186 | -3/Research | Destroyed Striker 26206 | -3/Research | Fabricated Biometal Heavy Treads (x2) 26227 | -3/Research | Destroyed 8 combat bots 26374 | -3/Research | Discovered new exit (range 9) 26469 | -3/Research | Identified exit to Research 26470 | -3/Research | Entered another Research area 26470 | -2/Research | Warlord forces began assault on 0b10 26470 | -2/Research | Evolved 2 slots: Utility x2 26580 | -2/Research | Research machine network offline 26673 | -2/Research | Fabricated Combat Drone Bay (x1) 26755 | -2/Research | Build established: Scavenger-Gunner 27006 | -2/Research | Met up with Warlord 27039 | -2/Research | Spotted Striker 27042 | -2/Research | Spotted Striker 27048 | -2/Research | Borebot progress halted 27110 | -2/Research | Borebot progress halted 27144 | -2/Research | Borebot progress halted 27322 | -2/Research | Discovered new exit (range 12) 27385 | -2/Research | Found Prototype Device 27385 | -2/Research | Identified Adv. EM Disruption Field 27391 | -2/Research | Found Adv. EM Disruption Field 27397 | -2/Research | Found Antimissile System 27412 | -2/Research | Build established: Gunner 27431 | -2/Research | Warlord destroyed during the assault 27538 | -2/Research | Found Gamma Bomb Array 27661 | -2/Research | Entered Quarantine 27662 | -2/Quarantine | Spotted Alpha 7 27700 | -2/Quarantine | Destroyed Alpha 7 27928 | -2/Quarantine | Found Alien Artifact 28160 | -2/Quarantine | Found Alien Slashing Weapon 28308 | -2/Quarantine | Identified Subatomic Replicator 28514 | -2/Quarantine | Discovered new exit (range 22) 28577 | -2/Quarantine | Found Alien Artifact 28577 | -2/Quarantine | Identified Phase Redirector 28813 | -2/Quarantine | Found Alien Artifact 28813 | -2/Quarantine | Identified Phase Armor 28911 | -2/Quarantine | First assault squad dispatched 28913 | -2/Quarantine | Found Prototype Reactor 28913 | -2/Quarantine | Identified Zero-point Reactor 28917 | -2/Quarantine | Found Zero-point Reactor 28941 | -2/Quarantine | Incoming assault squad redirected 28961 | -2/Quarantine | Spotted Fortress 28993 | -2/Quarantine | Build established: Scavenger-Gunner 29082 | -2/Quarantine | Discovered new exit (range 6) 29089 | -2/Quarantine | Entered Section 7 29200 | -2/Section 7 | Found Alien Artifact 29200 | -2/Section 7 | Identified Integrated Mediator 29200 | -2/Section 7 | Installed Integrated Mediator, increased core attachment efficiency. 29455 | -2/Section 7 | Found Alien Artifact 29588 | -2/Section 7 | Identified Integrated Reactor 29768 | -2/Section 7 | System corruption reached 10% 29792 | -2/Section 7 | Lost 7 parts (3n4u) 29818 | -2/Section 7 | Destroyed 9 combat bots 29999 | -2/Section 7 | Spotted S7 Guard 30020 | -2/Section 7 | Found Alien Artifact 30020 | -2/Section 7 | Identified Core Physics Calibrator 30339 | -2/Section 7 | First assault squad dispatched 30364 | -2/Section 7 | Incoming assault squad redirected 30690 | -2/Section 7 | Found Alien Artifact 30690 | -2/Section 7 | Identified Microwarp Drive 30771 | -2/Section 7 | Spotted S7 Guard 30812 | -2/Section 7 | Found Alien Artifact 30812 | -2/Section 7 | Identified Integrated Thermoelectric Network 30812 | -2/Section 7 | Installed Integrated Thermoelectric Network, gained heat-energy exchange potential 30818 | -2/Section 7 | Scanned by Researcher 30819 | -2/Section 7 | Intercept squad dispatched 30835 | -2/Section 7 | Spotted Tracker 30845 | -2/Section 7 | Spotted Tracker 30859 | -2/Section 7 | Destroyed Tracker 30859 | -2/Section 7 | Destroyed Tracker 30859 | -2/Section 7 | Destroyed S7 Guard 30860 | -2/Section 7 | Incoming assault squad redirected 30868 | -2/Section 7 | Spotted Combat Programmer 30877 | -2/Section 7 | Spotted Combat Programmer 30881 | -2/Section 7 | Destroyed Combat Programmer 30920 | -2/Section 7 | Identified Sigix Broadsword 30925 | -2/Section 7 | Core integrity fell below 50% 30947 | -2/Section 7 | System corruption reached 30% 30989 | -2/Section 7 | Lost 9 parts (4n2u3w) 31098 | -2/Section 7 | Lost 3 parts (1p1n1u) 31109 | -2/Section 7 | Incoming assault squad redirected 31109 | -2/Section 7 | Incoming assault squad redirected 31196 | -2/Section 7 | Incoming assault squad redirected 31256 | -2/Section 7 | Discovered new exit (range 15) 31272 | -2/Section 7 | Identified exit to Access 31272 | -2/Section 7 | Spotted B-90 Cyclops 31274 | -2/Section 7 | Entered Access 31274 | -1/Access | Evolved 2 slots (calibrated): Propulsion x2, Utility x1, -Weapon x1 31292 | -1/Access | Lost 6 parts (1p4n1w) 31478 | -1/Access | Installed Integrated Reactor, increased core energy generation (+10) 31505 | -1/Access | Spotted B-99 Colossus 31510 | -1/Access | Spotted B-99 Colossus 31554 | -1/Access | First assault squad dispatched 31575 | -1/Access | Core integrity fell below 50% 31610 | -1/Access | Lost 7 parts (4n3u) 31639 | -1/Access | Energy Cycler disabled 31641 | -1/Access | Incoming assault squad redirected 31652 | -1/Access | Spotted B-99 Colossus 31656 | -1/Access | Build established: Scavenger-Mutant 31713 | -1/Access | Core integrity fell below 20% 31716 | -1/Access | Discovered new exit (range 6) 31719 | -1/Access | Identified exit to Surface 31720 | *** | Escaped! Last Messages --------------- 31657_ Penetrated by Slug. 31657_ Slug penetrates Wall. 31658_ Acquired 9 matter. 31662_ Acquired Unknown Hackware. 31662_ Identified System Shield. 31669_ Door malfunctions. 31682_ Slammed into K-01 Serf. 31682_ Imp. System Guard broken. 31682_ Destabilizing: Short circuit. 31685_ Slammed into K-01 Serf. 31695_ K-01 Serf cleans the Spectral Interrupter. 31695_ Triggered Ambush Trap. 31695_ L-61 Swordsman emerges from a hatch in the floor. 31695_ G-73 Enforcer emerges from a hatch in the floor. 31710_ Microwarped (distance 3). 31711_ Microwarped (distance 2). 31716_ The Access Shell folds into the floor. 31716_ Microwarped (distance 11). 31716_ EXIT=FOUND 31719_ EXIT=IDENTIFIED: SURFACE Map ----- +----------------------------------------------------+ | #??????????????????????????????????? | | ###+##??????????????????????????????????? | | #???????????????????????????????????????? | | #???????????????????????????????????????? | | #### #???????????????????????????????????????? | | #??# #???????????????????????????????????????? | | +##+####/###?????????????????????????????????????? | | #?????????????????????????????????????? | | #?????????????????????????????????????? | | #?????????????????????????????????????? | | * #######################???????????????? | | # ??????????? | | """""" # ??????????? | | """""" # ###### ""####??????????????? | | """""" # #????# ""#?????????????????? | | """""" ] # #????# ""#?????????????????? | | """""" + #????# T#?????????????????? | | # #????# ""#?????????????????? | | # #????# ""#?????????????????? | | ############ #???## ""##????????????????? | | ??????????? #???# #????????????????? | | ??????????? #????# ##????????????????? | | ?????????? #????# #?????????????????? | | ??????????"" #????# #?????????????????? | | ?????????""" ?????# #?????????????????? | | ?????????""" ?????# @" #?????????????????? | | ???????????" ?????# "" #?????????????????? | | ???????????" ?????# #?????????????????? | | ??????????? ?????# #?????????????????? | | ??????????? ?????# #?????????????????? | | ??????????? ?????#""""""""""#?????????????????? | | ???????????#+##??????????????????????????????????? | | ?????????????????????????????????????????????????? | | ????????????????????????"""??????????????????????? | | ???????????????????????? ????????????????????? | | ??????????????????????? ??????????????????? | | ??????????????????????? ???????????????????? | | ??????????????????????? ???????????????????? | | ??????????????????????? ???????????????????? | | ??????????????????????? ????????????????????? | | ??????????????????##??? ????????????????????? | | ??????????????????# #### #????????????????????? | | ??????????????????# # #????????????????????? | | ??????????????????# # #????????????????????? | | ??????????######### #????????????????????? | | ??????????# #????????????????????? | | ??????????# #????????????????????? | | ??????????# #????????????????????? | | ??????????# #????????????????????? | | ??????????# #????????????????????? | +----------------------------------------------------+ Best States ------------- Heat Dissipation 111 Energy Generation 61 Energy Capacity 1100 Matter Stores 300 Matter Capacity 300 Sight Range 23 Robot Scan Range 16 Terrain Scan Density 210 Jamming Range 16 Cloak Strength 3 Base Temperature (-) 200 Corruption Containment 12 Armor Coverage 1200 Resistance: KI 30 Resistance: TH 50 Resistance: EM 50 Propulsion Shielding 33 Utility Shielding 66 Weapon Cycling 20 Evasion (%) 62 Targeting Accuracy 12 Target Analysis 8 Core Analysis 6 Armor Integrity Analysis 50 Recoil Reduction 11 Matter Filtering 30 Particle Charging 15 Kinecelleration 30 Defensive Hacking 10 Item Schematics ----------------- Hrd. Medium Armor Plating | -7/Factory | Scanalyzed Combat Drone Bay | -7/Data Miner | Free Lgt. Regenerative Plating | -7/Data Miner | Free Cld. Aerolev Unit | -7/Data Miner | Free Thermal Defense Suite | -7/Data Miner | Free Ion Burst Cannon | -7/Data Miner | Free Field Propulsion Drive | -7/Data Miner | Free Imp. Transmission Jammer | -7/Data Miner | Free Enh. Gauss Cannon | -7/Data Miner | Free Lyr. Heavy Armor Plating | -7/Data Miner | Free Imp. KE Penetrator | -2/Section 7 | Archive Exp. Thermal Shield | -2/Section 7 | Archive Exp. Shock Absorption System | -2/Section 7 | Archive Robot Schematics ------------------ L-31 Rogue | -9/Storage | Hacked L-41 Fighter | -7/Data Miner | Free D-53 Grenadier | -7/Data Miner | Free M-14 Sweeper | -7/Data Miner | Free O-24 Administrator | -7/Data Miner | Free M-22 Extractor | -7/Data Miner | Free H-66 Slayer | -7/Data Miner | Free Fabricated ------------ Adv. Medium Treads | x2 | -7/Factory | Preloaded Hrd. Medium Armor Plating | x1 | -7/Factory Imp. Weapon Cycler | x2 | -6/Factory | Preloaded Enh. Gauss Cannon | x2 | -6/Factory Enh. Gauss Cannon | x2 | -4/Factory Biometal Heavy Treads | x2 | -3/Research | Preloaded Combat Drone Bay | x1 | -2/Research Alien Tech Used ----------------- Phase Redirector Phase Armor Integrated Mediator Core Physics Calibrator Microwarp Drive Integrated Thermoelectric Network Sigix Broadsword Integrated Reactor Achievements -------------- None Challenges ------------ None Game ------ Seed ModifiedMissileFirepult Manual? 0 Play Time 07:35:54 Cumulative 311.4 hours Start 2022.04.12 @ 20:21:46 End 2022.04.16 @ 05:09:46 Sessions 5 Manual Loads 0 Difficulty Rogue Special Mode None Game No. 147 Rogue 147 Adventurer 0 Explorer 0 Win Type 0 Total 9 Types 6/0/3/0/0/0/0/0/0 Lore% 78 Gallery% 86 Achievement% 75 Wizard Run 0 Options --------- ASCII 0 Keyboard 1 Movement Numpad Keybinds 0 Fullscreen 2 Font 12/Terminus Map View 83x54 Tactical HUD 1 Map Filters NONE Filters NONE Steam 1 RUN: 67f6e55a-26a5-4bae-877e-3f4c24cab3f3